bitfinex/quotes_ETHUSD_20251213
["timestamp","ask_amount","ask_price","bid_price","bid_amount"]
[1765663745323,0.67166055,3116.4,3116.0,0.4908]
[1765663745524,0.30008393,3116.3,3116.0,0.4908]
[1765663745725,0.507,3116.6,3116.0,0.4908]
[1765663745955,0.30006741,3116.5,3116.0,0.4908]
[1765663746161,0.30006741,3116.4,3116.0,0.4908]
[1765663746452,0.30006741,3116.3,3116.0,0.4908]
[1765663746648,3.20874366,3116.5,3116.0,0.4908]
[1765663746856,0.29994451,3116.4,3116.0,0.4908]
[1765663747028,0.29994451,3116.3,3116.0,0.4908]
[1765663747228,0.507,3116.2,3116.0,0.4908]
[1765663747641,0.507,3116.2,3116.1,0.4575]
[1765663748747,0.507,3116.2,3116.1,0.9463]
[1765663750729,0.507,3116.2,3116.1,0.4575]
[1765663750931,0.507,3116.2,3116.1,0.9463]
[1765663752356,0.507,3116.2,3116.1,0.4575]
[1765663753160,0.507,3116.2,3116.0,0.002]
[1765663755094,0.507,3116.2,3116.1,0.4575]
[1765663755356,0.507,3116.3,3116.1,0.9463]
[1765663755541,0.507,3116.3,3116.1,0.4888]
[1765663755744,0.507,3116.3,3116.2,0.9463]
[1765663763571,0.80682324,3116.3,3116.2,0.9463]
[1765663764067,0.507,3116.3,3116.2,0.9463]
[1765663764272,0.80682324,3116.3,3116.2,0.9463]
[1765663764569,0.80682324,3116.3,3116.2,4.15533664]
[1765663765044,0.80682324,3116.3,3116.2,0.9463]
[1765663769871,0.29982324,3116.3,3116.2,0.9463]
[1765663772139,0.29982324,3116.3,3116.2,4.15533664]
[1765663772343,0.29982324,3116.3,3116.2,4.89198456]
[1765663775476,0.29982324,3116.3,3116.2,4.15533664]
[1765663781283,0.30099746,3116.3,3116.2,4.15533664]
[1765663788056,0.30099746,3116.3,3116.2,3.66653664]
[1765663788688,0.30099746,3116.3,3116.2,4.14073664]
[1765663805901,0.507,3116.7,3116.2,4.14073664]
[1765663806106,0.30075234,3116.6,3116.2,3.66653664]
[1765663806307,0.30075234,3116.5,3116.2,3.20903664]
[1765663806605,0.30075234,3116.4,3116.2,3.20903664]
[1765663806787,0.30075234,3116.3,3116.2,3.20903664]
[1765663807636,0.30080062,3116.3,3116.2,3.20903664]
[1765663809308,0.30080062,3116.3,3116.1,3.20913962]
[1765663809611,0.30080062,3116.2,3116.1,3.20913962]
[1765663811605,0.30080062,3116.2,3116.0,3.21124261]
[1765663811816,0.30080062,3116.1,3116.0,3.21124261]
[1765663816598,0.30080062,3116.1,3116.0,0.002]
[1765663829406,3.50994024,3116.1,3116.0,0.002]
[1765663829605,3.91253675,3116.1,3116.0,0.002]
[1765663830186,0.70339713,3116.1,3116.0,0.002]
[1765663830825,3.91253675,3116.1,3116.0,0.002]
[1765663833634,8.61090696,3116.1,3116.0,0.002]
[1765663833941,9.18235737,3116.1,3116.0,0.002]
[1765663834651,9.31093235,3116.1,3116.0,0.002]
[1765663835453,4.62158702,3116.1,3116.0,0.002]
[1765663836350,9.31093235,3116.1,3116.0,0.002]
[1765663841527,3.91253675,3116.1,3116.0,0.002]
[1765663841726,3.92156163,3116.1,3116.0,0.002]
[1765663843749,3.91253675,3116.1,3116.0,0.002]
[1765663848266,3.92156163,3116.1,3116.0,0.002]
[1765663851241,3.91253675,3116.1,3116.0,0.002]
[1765663869345,3.91270909,3116.1,3116.0,0.002]
[1765663869767,3.92173397,3116.1,3116.0,0.002]
[1765663872173,3.91270909,3116.1,3116.0,0.002]
[1765663872380,3.92173397,3116.1,3116.0,0.002]
[1765663874682,3.91270909,3116.1,3116.0,0.002]
[1765663876858,3.92173397,3116.1,3116.0,0.002]
[1765663879260,8.61341571,3116.1,3116.0,0.002]
[1765663879460,8.60439083,3116.1,3116.0,0.002]
[1765663879660,3.91270909,3116.1,3116.0,0.9161]
[1765663880070,3.91270909,3116.1,3116.0,0.4598]
[1765663889597,3.81270909,3116.1,3116.0,0.4598]
[1765663891689,3.81270909,3116.1,3116.0,0.002]
[1765663898006,4.27100909,3116.1,3116.0,0.002]
[1765663904884,3.96841258,3116.1,3116.0,0.9405]
[1765663905088,3.51011258,3116.1,3116.0,0.9405]
[1765663906415,3.51011258,3116.1,3116.0,0.4757]
[1765663913826,3.51011258,3116.1,3116.0,0.002]
[1765663914325,3.98581258,3116.1,3116.0,0.002]
[1765663914520,5.60404236,3116.1,3116.0,0.002]
[1765663916730,10.2958587,3116.1,3116.0,0.002]
[1765663921029,3.51011258,3116.1,3116.0,0.9445]
[1765663921228,4.01711258,3116.1,3116.0,0.9445]
[1765663922638,4.01718553,3116.1,3116.0,0.9445]
[1765663922936,4.01718553,3116.1,3116.0,0.002]
[1765663924039,4.02621041,3116.1,3116.0,0.002]
[1765663924840,4.01718553,3116.1,3116.0,0.002]
[1765663953040,4.01726409,3116.1,3116.0,0.002]
[1765663959196,4.78882393,3116.1,3116.0,0.002]
[1765663959481,5.36929922,3116.1,3116.0,0.002]
[1765663959844,0.58047529,3116.0,3115.8,0.002]
[1765663960044,0.30112447,3115.9,3115.8,0.002]
[1765663960471,0.42969987,3115.9,3115.8,0.002]
[1765663960677,1.30040129,3115.9,3115.8,0.002]
[1765663961977,9.20067397,3115.9,3115.8,0.002]
[1765663962683,9.78114926,3115.9,3115.8,0.002]
[1765663962981,5.09022219,3115.9,3115.8,0.002]
[1765663963280,9.78114926,3115.9,3115.8,0.002]
[1765663964387,5.09022219,3115.9,3115.8,0.002]
[1765663964681,4.59794537,3115.9,3115.8,0.9366]
[1765663965500,4.59794537,3115.9,3115.8,0.002]
[1765663965982,5.53454537,3115.9,3115.8,0.002]
[1765663968786,5.54357025,3115.9,3115.8,0.002]
[1765663969181,34.59156754,3115.9,3115.8,0.002]
[1765663969477,34.59156754,3115.9,3114.8,0.002]
[1765663969478,0.58047529,3115.8,3114.8,0.002]
[1765663969783,0.58047529,3115.3,3114.9,0.6332]
[1765663970084,0.80812447,3115.2,3114.9,0.6332]
[1765663970297,0.30112447,3115.1,3114.9,0.6332]
[1765663970591,0.30112447,3115.0,3114.9,0.6332]
[1765663970757,0.30112447,3115.0,3114.9,1.1169]
[1765663970958,3.51139734,3115.0,3114.9,1.1169]
[1765663975580,3.51139734,3115.0,3114.9,0.4857]
[1765663975781,3.51139734,3115.0,3114.9,0.002]
[1765663976596,3.51139734,3115.0,3114.9,0.4937]
[1765663976806,4.28349649,3115.0,3114.9,0.002]
[1765663977477,4.41210248,3115.0,3114.9,0.002]
[1765663977680,26.78867377,3115.0,3114.9,0.002]
[1765663977926,25.68617377,3115.0,3114.9,0.002]
[1765663978209,25.36475777,3115.0,3114.9,0.002]
[1765663978894,25.36475777,3115.0,3114.2,0.002]
[1765663979083,25.36475777,3115.0,3114.3,0.4905]
[1765663979084,0.58047529,3114.7,3114.3,0.4905]
[1765663979400,0.80812447,3114.6,3114.3,0.4905]
[1765663979580,0.30112447,3114.5,3114.3,0.4905]
[1765663979903,3.51201581,3114.4,3114.3,0.4905]
[1765663980073,4.00251581,3114.4,3114.3,0.4905]
[1765663980271,7.98543325,3114.4,3114.0,0.002]
[1765663980490,5.27140236,3114.2,3114.0,0.002]
[1765663980672,18.26053783,3114.2,3114.0,0.002]
[1765663980868,18.26053783,3114.2,3113.2,0.1826]
[1765663980869,14.489902,3114.0,3113.2,0.1826]
[1765663981097,0.58047529,3114.1,3112.8,0.12865852]
[1765663981098,4.69092707,3113.4,3112.8,0.12865852]
[1765663981311,1.38859976,3113.3,3112.8,0.1229004]
[1765663981583,4.69092707,3113.0,3112.5,0.4905]
[1765663981793,6.42508352,3112.8,3112.5,0.4905]
[1765663982503,0.9652432,3112.7,3112.5,0.4905]
[1765663982921,6.23664556,3112.7,3111.9,0.6731]
[1765663983203,0.58047529,3111.9,3111.3,0.4905]
[1765663983415,0.507,3111.8,3111.3,0.4905]
[1765663983701,0.507,3111.8,3111.3,1.45588297]
[1765663983866,0.507,3111.8,3111.7,0.4917]
[1765663984399,0.507,3111.8,3111.7,0.9822]
[1765663985579,0.507,3111.8,3111.7,0.4917]
[1765663985780,3.72057413,3111.8,3111.4,0.4905]
[1765663985999,6.93414826,3111.8,3111.4,0.4905]
[1765663986320,8.09665579,3111.8,3111.4,0.4905]
[1765663986475,4.88308166,3111.8,3110.9,0.1826]
[1765663986675,4.88308166,3111.8,3111.0,3.70487118]
[1765663986875,0.507,3111.8,3111.7,0.4917]
[1765663987405,0.507,3111.8,3111.5,0.4905]
[1765663987406,3.72057413,3111.8,3111.5,0.4905]
[1765663988307,6.25054353,3111.7,3111.2,0.4905]
[1765663988670,6.25054353,3111.7,3110.9,0.1826]
[1765663988904,6.25054353,3111.7,3110.9,0.6731]
[1765663989078,4.70440871,3111.4,3110.9,0.6731]
[1765663989283,0.507,3111.3,3110.9,0.6731]
[1765663989706,0.507,3111.3,3111.2,0.4917]
[1765663990408,3.72109057,3111.3,3111.2,0.4917]
[1765663990906,3.72109057,3111.3,3110.9,0.1826]
[1765663991098,7.3072902,3111.3,3110.9,0.1826]
[1765663991292,4.09319963,3111.3,3110.9,0.1826]
[1765663991697,0.96574657,3111.2,3110.9,0.1826]
[1765663991911,0.96574657,3111.2,3110.7,0.4905]
[1765663991912,1.54622186,3111.2,3110.7,0.4905]
[1765663992083,11.13300309,3111.1,3110.7,0.4905]
[1765663992282,1.2679225,3111.0,3110.7,0.4905]
[1765663992480,0.507,3110.9,3110.7,0.4905]
[1765663992685,0.507,3110.9,3110.4,0.002]
[1765663992686,0.507,3110.9,3110.5,0.4905]
[1765663993999,0.96588027,3110.8,3110.5,0.4905]
[1765663994513,4.18055474,3110.8,3110.5,0.4905]
[1765663994679,5.1555948,3110.8,3110.5,0.4905]
[1765663994884,8.37026927,3110.8,3110.5,0.4905]
[1765663995083,13.07467798,3110.8,3110.5,0.4905]
[1765663995283,13.07467798,3110.8,3110.4,0.002]
[1765663995482,13.07467798,3110.8,3110.4,0.4925]
[1765663995683,1.3581678,3110.7,3110.4,0.4925]
[1765663996293,0.96594558,3110.6,3110.4,0.4925]
[1765663996494,0.507,3110.5,3110.4,0.4925]
[1765663996894,0.507,3110.5,3110.4,0.002]
[1765663996895,3.72191721,3110.5,3110.4,0.002]
[1765663997099,9.00680121,3110.5,3110.4,0.002]
[1765663997294,10.46136929,3110.5,3110.4,0.002]
[1765663997513,35.45362629,3110.5,3110.4,0.002]
[1765663997691,32.76191914,3110.5,3110.4,0.002]
[1765663997896,15.81749914,3110.5,3110.4,0.002]
[1765663998209,14.17350914,3110.5,3110.4,0.002]
[1765663998717,36.10431114,3110.5,3110.4,0.002]
[1765663998885,35.29175314,3110.5,3110.4,0.002]
[1765663999097,27.96234414,3110.5,3110.4,0.002]
[1765663999828,31.21238814,3110.5,3110.4,0.002]
[1765664000028,31.21781335,3110.5,3110.4,0.002]
[1765664000333,35.92764727,3110.5,3110.4,0.002]
[1765664000829,42.85552027,3110.5,3110.4,0.002]
[1765664001204,43.58954148,3110.5,3109.8,0.002]
[1765664001541,0.58047529,3109.9,3109.8,0.002]
[1765664001743,1.08847529,3109.9,3109.8,0.002]
[1765664002036,20.92374534,3109.9,3109.8,0.002]
[1765664002244,21.41424534,3109.9,3109.8,0.002]
[1765664003034,29.25793734,3109.9,3109.8,0.002]
[1765664003212,0.405504,3109.4,3108.5,0.1938]
[1765664003413,9.64785333,3109.5,3108.2,0.1938]
[1765664003414,0.58047529,3108.6,3108.2,0.1938]
[1765664003614,4.70983392,3108.4,3108.0,0.4928]
[1765664003922,0.4928,3108.5,3108.1,0.1938]
[1765664004121,5.21783392,3108.4,3108.1,0.1938]
[1765664004321,0.508,3108.4,3108.1,0.6866]
[1765664005236,3.79766796,3108.3,3108.1,0.1938]
[1765664005422,0.58047529,3108.3,3108.1,0.6531]
[1765664005736,0.58047529,3108.3,3107.7,0.6419]
[1765664005737,0.58047529,3108.1,3107.7,0.6419]
[1765664005932,0.508,3108.0,3107.7,0.6419]
[1765664006235,0.58047529,3108.2,3108.0,0.4532]
[1765664006436,0.508,3108.1,3108.0,0.4532]
[1765664006604,0.80470741,3108.1,3108.0,0.9125]
[1765664006807,0.80470741,3108.1,3108.0,0.8125]
[1765664007102,0.80470741,3108.1,3108.0,0.3532]
[1765664007307,0.508,3108.3,3108.0,0.8125]
[1765664007608,0.508,3108.3,3108.2,0.6413]
[1765664007809,0.80497089,3108.3,3108.2,0.6413]
[1765664008009,0.80497089,3108.3,3108.2,1.1006]
[1765664009630,10.29299494,3108.3,3108.0,0.4593]
[1765664009941,10.29299494,3108.3,3107.9,0.002]
[1765664009942,10.680359,3108.0,3107.9,0.002]
[1765664010236,2.34157189,3108.0,3107.9,0.002]
[1765664010415,2.34157189,3108.0,3107.9,0.4552]
[1765664010614,3.10476,3108.0,3107.9,0.002]
[1765664011342,6.83126321,3108.0,3107.9,0.002]
[1765664012736,7.29056321,3108.0,3107.9,0.002]
[1765664013123,33.2091375,3108.0,3107.9,0.002]
[1765664013326,33.2091375,3108.0,3105.9,0.1826]
[1765664013327,2.571506,3107.4,3106.4,3.40726044]
[1765664013534,0.58047529,3107.1,3106.4,0.1881]
[1765664013738,0.58047529,3107.1,3105.9,0.1826]
[1765664013739,27.55767129,3106.7,3105.9,0.6419]
[1765664013933,0.58047529,3106.2,3105.7,0.1881]
[1765664014146,0.8065231,3106.1,3105.7,0.1881]
[1765664014325,0.2975231,3106.0,3105.4,0.4593]
[1765664014530,0.2975231,3105.9,3105.4,0.6474]
[1765664014833,0.9674283,3106.0,3105.4,0.6474]
[1765664014834,0.2975231,3105.8,3105.4,0.6474]
[1765664015034,0.4674283,3106.0,3105.5,0.4593]
[1765664015221,0.509,3106.1,3105.9,0.4532]
[1765664015422,0.509,3106.1,3106.0,0.9125]
[1765664016130,0.509,3106.1,3106.0,0.4532]
[1765664016335,4.30894665,3106.1,3106.0,0.4532]
[1765664016534,1.3866155,3106.1,3106.0,0.4532]
[1765664016938,1.3866155,3106.1,3106.0,0.9125]
[1765664017317,1.08947529,3106.1,3106.0,0.9125]
[1765664017752,0.509,3106.1,3106.0,4.13207501]
[1765664017919,0.509,3106.1,3106.0,0.9125]
[1765664018117,0.509,3106.1,3106.0,4.13207501]
[1765664018536,9.65344143,3107.7,3106.0,7.35165002]
[1765664018822,0.405504,3107.4,3106.2,0.4532]
[1765664019032,0.58047529,3107.2,3106.2,0.4532]
[1765664019332,0.80585904,3107.1,3106.3,0.4593]
[1765664019530,0.98597929,3107.5,3106.3,0.4593]
[1765664019531,0.80585904,3107.0,3106.4,6.43832088]
[1765664019714,0.509,3106.9,3106.5,1.14906209]
[1765664019919,0.58047529,3107.3,3106.5,1.14906209]
[1765664020119,0.29687669,3107.2,3106.8,0.4532]
[1765664020419,0.509,3107.1,3106.6,0.4593]
[1765664020619,0.29687669,3107.4,3106.6,0.4593]
[1765664020925,0.509,3107.3,3106.6,0.4593]
[1765664021127,0.29687669,3107.6,3106.6,0.4593]
[1765664021313,0.80587669,3107.5,3106.6,0.4593]
[1765664021520,0.29687669,3107.4,3106.7,9.65654874]
[1765664021724,0.509,3107.5,3107.4,0.6413]
[1765664021926,0.29716206,3107.9,3107.4,0.6413]
[1765664022239,6.45561154,3109.0,3107.5,0.4593]
[1765664022240,0.80616206,3107.8,3107.5,0.4593]
[1765664022428,0.29716206,3107.7,3107.5,0.4593]
[1765664022749,0.29716206,3107.6,3107.5,0.4593]
[1765664023050,0.29716206,3107.7,3107.5,0.4593]
[1765664023226,3.51389105,3108.9,3108.2,0.4532]
[1765664023427,0.58047529,3108.6,3108.2,0.4532]
[1765664023628,0.29731928,3108.5,3108.3,0.1881]
[1765664023853,0.29731928,3108.4,3108.3,0.1881]
[1765664024369,0.29731928,3108.4,3108.3,0.6413]
[1765664024658,0.80631928,3108.4,3108.3,1.1006]
[1765664025743,0.80631928,3108.4,3108.3,0.6413]
[1765664026142,0.58047529,3108.3,3107.4,0.1881]
[1765664026320,0.29731928,3108.2,3107.5,3.67730206]
[1765664026521,0.29731928,3108.1,3107.5,3.67730206]
[1765664026757,0.29731928,3108.0,3107.6,0.4593]
[1765664026927,0.29731928,3107.9,3107.6,0.4593]
[1765664027129,0.29731928,3107.8,3107.6,0.4593]
[1765664027428,0.29731928,3107.7,3107.6,0.4593]
[1765664027827,0.29731928,3107.7,3107.6,4.06375757]
[1765664028056,0.29731928,3107.7,3107.6,4.13041736]
[1765664028555,0.51,3108.6,3107.6,10.56625208]
[1765664028856,0.29866321,3108.5,3107.7,0.4593]
[1765664029021,0.29866321,3108.4,3107.8,1.01130521]
[1765664029228,0.29866321,3108.3,3107.8,1.01130521]
[1765664029428,0.001,3108.8,3108.7,0.4532]
[1765664029630,0.29976749,3108.8,3108.7,0.4532]
[1765664029831,0.29976749,3108.8,3108.7,0.9125]
[1765664030044,0.29976749,3108.8,3108.7,4.12927871]
[1765664030531,0.29976749,3108.8,3108.7,4.86390371]
[1765664031335,0.29976749,3108.8,3108.7,0.9125]
[1765664032431,0.29976749,3108.8,3108.7,4.12927871]
[1765664032634,0.001,3108.8,3108.7,4.12927871]
[1765664036936,0.001,3108.8,3108.7,5.04478271]
[1765664040398,0.001,3108.8,3108.7,8.87478271]
[1765664040541,0.001,3108.8,3108.7,10.41509277]
[1765664044873,0.00042885,3109.1,3108.7,13.63187148]
[1765664045177,0.00042885,3109.1,3109.0,0.4612]
[1765664045677,0.00042885,3109.1,3109.0,0.9398]
[1765664046349,0.00042885,3109.1,3109.0,4.15626831]
[1765664046549,0.00042885,3109.1,3109.0,5.27655272]
[1765664047358,0.00042885,3109.1,3109.0,6.26253201]
[1765664048672,0.00042885,3109.1,3109.0,6.77253201]
[1765664049161,0.00042885,3109.1,3109.0,5.27655272]
[1765664049363,0.00042885,3109.1,3109.0,3.67766831]
[1765664049562,0.00042885,3109.1,3109.0,4.15626831]
[1765664049870,0.00042885,3109.1,3109.0,3.67766831]
[1765664050480,0.00042885,3109.1,3109.0,4.15626831]
[1765664050777,0.10422885,3109.1,3108.4,0.51]
[1765664050960,0.10422885,3109.1,3108.8,3.21665424]
[1765664051161,0.10422885,3109.1,3108.5,0.4786]
[1765664051360,0.10422885,3109.1,3108.7,3.21671703]
[1765664052554,0.10422885,3109.1,3108.4,0.68127122]
[1765664052778,0.10422885,3109.1,3108.7,0.4786]
[1765664052981,0.00042885,3109.1,3109.0,0.4612]
[1765664053350,0.00042885,3109.1,3109.0,0.9398]
[1765664053882,0.00042885,3109.1,3109.0,1.345304]
[1765664054180,0.00042885,3109.1,3109.0,8.22849146]
[1765664054372,0.00042885,3109.1,3109.0,9.44378532]
[1765664054574,0.00042885,3109.1,3109.0,12.66025363]
[1765664054758,0.00042885,3109.1,3109.0,6.35754146]
[1765664054954,0.00042885,3109.1,3109.0,6.86754146]
[1765664056475,0.00042885,3109.1,3109.0,5.88156217]
[1765664056782,0.00042885,3109.1,3109.0,3.67766831]
[1765664057282,0.00042885,3109.1,3109.0,4.15626831]
[1765664059587,0.00042885,3109.1,3109.0,3.67766831]
[1765664060386,0.00042885,3109.1,3109.0,4.15626831]
[1765664061085,0.00042885,3109.1,3109.0,3.67766831]
[1765664064189,0.00042885,3109.1,3109.0,3.21646831]
[1765664064390,0.00042885,3109.1,3109.0,3.70056831]
[1765664066494,0.10422885,3109.1,3108.8,3.83]
[1765664066693,0.10422885,3109.1,3109.0,3.21646831]
[1765664066898,0.00042885,3109.1,3109.0,3.69206831]
[1765664067097,0.30150009,3109.1,3109.0,3.69206831]
[1765664067682,0.30150885,3109.1,3109.0,3.69206831]
[1765664068776,0.30150885,3109.1,3109.0,4.18606831]
[1765664068982,0.30150885,3109.1,3109.0,5.24799037]
[1765664072699,0.74660885,3109.1,3108.7,3.83]
[1765664072907,0.001,3108.9,3108.8,3.21667407]
[1765664073204,0.00042885,3109.1,3108.8,6.92734931]
[1765664073403,0.00042885,3109.1,3108.9,0.4756]
[1765664074885,0.1038,3109.0,3108.8,6.43334931]
[1765664075085,0.00042885,3109.1,3108.8,7.50908424]
[1765664075708,0.4451,3108.9,3108.8,3.21667407]
[1765664076115,0.89422216,3108.9,3108.7,3.83]
[1765664076406,0.1043,3108.8,3108.7,3.21677871]
[1765664077202,0.1043,3108.8,3108.5,6.43387166]
[1765664079917,0.1043,3108.8,3108.5,3.21688598]
[1765664080315,0.1043,3108.8,3108.5,6.43387166]
[1765664080485,0.1043,3108.8,3108.5,3.21688598]
[1765664080686,0.44212885,3109.1,3108.5,6.92787166]
[1765664080992,0.30101692,3109.0,3108.5,6.92787166]
[1765664081183,0.30101692,3108.9,3108.5,3.21688598]
[1765664081389,0.44552885,3109.1,3108.5,6.43387166]
[1765664081589,0.3010043,3109.0,3108.5,6.43387166]
[1765664081802,0.3010043,3108.9,3108.5,6.43387166]
[1765664082024,0.44552885,3109.1,3108.5,6.43387166]
[1765664082326,0.30100428,3109.0,3108.5,6.92787166]
[1765664082530,0.30100428,3108.9,3108.6,0.76091429]
[1765664082731,0.00042885,3109.1,3108.7,0.494]
[1765664082937,0.30099237,3109.0,3108.8,0.4756]
[1765664083124,0.30099237,3108.9,3108.8,0.4756]
[1765664083633,0.30099237,3108.9,3108.5,6.92787166]
[1765664083832,0.00042885,3109.1,3108.8,0.4756]
[1765664084035,0.30096796,3109.0,3108.9,3.21657177]
[1765664084335,0.40476796,3109.0,3108.9,3.21657177]
[1765664084816,0.40476796,3109.0,3108.8,3.21663026]
[1765664085016,0.30096796,3108.9,3108.8,3.21663026]
[1765664086020,0.40476796,3108.9,3108.7,3.21677871]
[1765664086220,0.1038,3108.9,3108.7,3.21677871]
[1765664088813,0.00042885,3109.1,3108.7,6.43355742]
[1765664089014,0.30101983,3109.0,3108.7,6.43355742]
[1765664089338,0.30101983,3108.9,3108.7,3.21677871]
[1765664089553,0.44552885,3109.1,3108.7,3.21677871]
[1765664089711,0.3010225,3109.0,3108.7,3.21677871]
[1765664089911,0.4451,3108.8,3108.7,3.21677871]
[1765664090406,0.10422885,3109.1,3108.7,0.4756]
[1765664090606,0.30102498,3109.0,3108.7,0.4756]
[1765664090918,0.30102498,3108.9,3108.7,0.4756]
[1765664091123,0.10422885,3109.1,3108.7,0.4756]
[1765664091430,0.3010298,3109.0,3108.7,0.4756]
[1765664091632,0.3010298,3108.9,3108.7,0.4756]
[1765664091822,0.10422885,3109.1,3108.7,0.4756]
[1765664092028,0.3010299,3109.0,3108.7,0.4756]
[1765664092213,0.3010299,3108.9,3108.7,0.4756]
[1765664092413,0.10422885,3109.1,3108.7,0.4756]
[1765664092739,0.30103987,3109.0,3108.8,3.21667524]
[1765664092977,0.30103987,3108.9,3108.7,3.69233486]
[1765664093244,0.10422885,3109.1,3108.7,3.69233486]
[1765664093446,0.30105536,3109.0,3108.7,3.69233486]
[1765664093634,0.30105536,3108.9,3108.7,3.69233486]
[1765664093835,0.10422885,3109.1,3108.7,3.69233486]
[1765664094036,0.4417,3108.8,3108.7,3.21673486]
[1765664094538,0.74277677,3108.8,3108.6,3.21687576]
[1765664094735,0.4417,3108.8,3108.6,3.21687576]
[1765664095650,0.10422885,3109.1,3108.7,0.4734]
[1765664095833,0.30110706,3109.0,3108.7,0.4734]
[1765664096043,0.30110706,3108.9,3108.7,0.4734]
[1765664096231,0.30110706,3108.8,3108.7,0.4734]
[1765664096622,0.30110706,3108.8,3108.7,3.69017871]
[1765664097548,0.74280706,3108.8,3108.7,3.69017871]
[1765664098020,0.74280706,3108.8,3108.7,3.21677871]
[1765664098351,0.74280706,3108.8,3108.6,3.21686704]
[1765664098523,0.30110706,3108.7,3108.6,3.21686704]
[1765664098723,0.30110706,3108.7,3108.5,3.21698568]
[1765664098724,0.30360706,3108.7,3108.5,3.21698568]
[1765664098978,0.0025,3108.7,3108.5,3.21698568]
[1765664099124,0.0025,3108.7,3108.2,3.83]
[1765664099125,0.74629034,3108.6,3108.2,3.21721651]
[1765664099323,0.3389,3108.3,3108.2,3.21721651]
[1765664100760,0.3389,3108.3,3107.9,6.43521348]
[1765664100963,0.3389,3108.3,3107.9,7.12859483]
[1765664101133,0.4451,3108.0,3107.9,3.91098809]
[1765664101458,0.4451,3108.0,3107.9,3.21760674]
[1765664101857,0.4451,3108.6,3107.9,6.90861348]
[1765664102160,0.30121459,3108.5,3107.9,6.90861348]
[1765664102323,0.509,3108.8,3107.9,7.40521348]
[1765664102324,0.30121459,3108.4,3107.9,7.40521348]
[1765664102639,0.30121459,3108.3,3108.0,0.4966]
[1765664102839,0.9541,3108.8,3108.0,0.4966]
[1765664103049,0.30117537,3108.7,3108.1,3.21739969]
[1765664103248,0.9541,3108.8,3108.1,6.43479938]
[1765664103249,0.30117537,3108.6,3108.1,6.43479938]
[1765664103449,0.30117537,3108.5,3108.2,0.4966]
[1765664103651,0.00042885,3109.1,3108.7,0.4734]
[1765664103950,0.30111415,3109.0,3108.7,0.4734]
[1765664104164,0.30111415,3108.9,3108.4,0.4966]
[1765664104322,0.30111415,3108.8,3108.4,0.4966]
[1765664104523,0.30111415,3108.7,3108.4,0.4966]
[1765664104725,0.44552885,3109.1,3108.4,0.4966]
[1765664104946,0.74625712,3109.0,3108.3,6.43438534]
[1765664105151,0.30115712,3108.9,3108.4,0.71275253]
[1765664105358,0.30115712,3108.8,3108.4,0.71275253]
[1765664105657,0.30115712,3108.7,3108.4,0.71275253]
[1765664105858,0.4451,3109.0,3108.4,0.71275253]
[1765664106040,0.30120612,3108.9,3108.4,0.71275253]
[1765664106247,0.30120612,3108.8,3108.5,0.71471379]
[1765664106557,0.30120612,3108.7,3108.4,0.71275253]
[1765664106732,0.1038,3108.5,3108.3,6.94338534]
[1765664106922,0.4417,3109.0,3108.3,6.94338534]
[1765664107123,0.44961548,3108.9,3108.3,6.94338534]
[1765664107355,0.30121548,3108.8,3108.3,6.94338534]
[1765664107554,0.30121548,3108.7,3108.4,0.81331253]
[1765664107853,0.1484,3108.9,3108.4,0.81331253]
[1765664108055,0.30121901,3108.8,3108.4,0.81331253]
[1765664108237,0.30121901,3108.7,3108.4,0.81331253]
[1765664108438,0.1484,3108.9,3108.4,0.81331253]
[1765664108638,0.30122073,3108.8,3108.4,0.81331253]
[1765664108831,0.30122073,3108.7,3108.4,1.30991253]
[1765664109158,0.1484,3108.9,3108.6,3.6902218]
[1765664109362,0.30122684,3108.8,3108.6,3.6902218]
[1765664109531,0.30122684,3108.7,3108.6,3.6902218]
[1765664113858,0.30122684,3108.7,3108.6,4.46228306]
[1765664114031,0.00042885,3109.1,3108.6,8.17576525]
[1765664114231,0.30123925,3109.0,3108.7,0.4966]
[1765664114529,0.30123925,3108.9,3108.7,0.4966]
[1765664114730,0.00042885,3109.1,3109.0,0.4734]
[1765664114932,0.3016551,3109.1,3109.0,0.4734]
[1765664115162,0.3016551,3109.1,3109.0,0.97]
[1765664115661,0.3016551,3109.1,3109.0,1.53830962]
[1765664115964,0.3016551,3109.1,3109.0,4.75477793]
[1765664117863,0.00042885,3109.1,3109.0,4.75477793]
[1765664124067,0.44552885,3109.1,3109.0,3.78477793]
[1765664124366,0.44552885,3109.1,3109.0,3.21646831]
[1765664124756,0.44552885,3109.1,3108.8,6.4332516]
[1765664126034,0.1038,3108.9,3108.8,3.21657636]
[1765664126238,0.4451,3108.9,3108.8,3.21657636]
[1765664126540,0.00042885,3109.1,3108.8,7.21750924]
[1765664126735,0.00042885,3109.1,3108.9,4.70957067]
[1765664127254,0.00042885,3109.1,3109.0,0.4626]
[1765664128738,0.00042885,3109.1,3109.0,3.67906831]
[1765664129069,0.00042885,3109.1,3109.0,4.14576831]
[1765664129367,0.00042885,3109.1,3109.0,5.70679313]
[1765664138773,0.00042885,3109.1,3109.0,9.94229713]
[1765664139173,0.00042885,3109.1,3109.0,10.38739713]
[1765664139349,0.00042885,3109.1,3109.0,11.94204176]
[1765664139671,0.00042885,3109.1,3109.0,7.23231958]
[1765664139871,0.00042885,3109.1,3109.0,7.13787242]
[1765664144751,0.00042885,3109.1,3109.0,7.23231958]
[1765664144952,0.00042885,3109.1,3109.0,7.13787242]
[1765664145977,0.001,3110.1,3109.4,0.405504]
[1765664146181,0.001,3110.1,3110.0,10.28754836]
[1765664146484,0.001,3110.1,3110.0,12.40577849]
[1765664146776,0.001,3110.1,3110.0,16.21664728]
[1765664147165,0.001,3110.1,3110.0,11.5069251]
[1765664147551,0.001,3110.1,3110.0,16.21664728]
[1765664156192,0.001,3110.1,3110.0,14.4076251]
[1765664156390,0.001,3110.1,3110.0,15.3767251]
[1765664156762,0.001,3110.1,3110.0,20.08644728]
[1765664157362,0.001,3110.1,3110.0,10.66700292]
[1765664157566,0.001,3110.1,3110.0,20.08644728]
[1765664158765,0.001,3110.1,3110.0,14.4076251]
[1765664158970,0.001,3110.1,3110.0,14.8792251]